fUSD/lending_fUSD_20250618
["ID","MTS","AMOUNT","RATE_DAILY","PERIOD"]
[366378356,1750219883894,-497.11424205,0.00017095,2]
[366378357,1750219883904,-1796.39,0.00017095,2]
[366378358,1750219883914,-490.0,0.00017095,2]
[366378359,1750219883923,-1189.87,0.00017095,2]
[366378360,1750219883933,-1231.43,0.00017095,2]
[366378361,1750219883943,-1577.26,0.00017095,2]
[366378362,1750219883953,-2605.35,0.00017095,2]
[366378363,1750219883963,-12561.35,0.00017095,2]
[366378364,1750219883973,-6591.33,0.00017095,2]
[366378365,1750219883983,-1590.95,0.00017095,2]
[366378366,1750219883993,-490.0,0.00017095,2]
[366378367,1750219884003,-1237.3,0.00017095,2]
[366378368,1750219884012,-490.0,0.00017095,2]
[366378369,1750219884022,-490.0,0.00017095,2]
[366378370,1750219884032,-490.0,0.00017095,2]
[366378371,1750219884041,-2778.05,0.00017095,2]
[366378372,1750219884051,-490.0,0.00017095,2]
[366378373,1750219884061,-7744.45,0.00017095,2]
[366378374,1750219884071,-539.31,0.00017095,2]
[366378375,1750219884080,-790.46,0.00017095,2]
[366378376,1750219884090,-688.72,0.00017095,2]
[366378377,1750219884100,-828.06,0.00017095,2]
[366378378,1750219884110,-1760.37,0.00017095,2]
[366378379,1750219884120,-3335.04,0.00017095,2]
[366378380,1750219884130,-151.0,0.00017095,2]
[366378381,1750219884140,-300.0,0.00017095,2]
[366378382,1750219884149,-151.0,0.00017095,2]
[366378383,1750219884158,-1788.15,0.00017095,2]
[366378384,1750219884168,-2228.5,0.00017095,2]
[366378385,1750219884178,-650.66,0.00017095,2]
[366378386,1750219884188,-838.46,0.00017095,2]
[366378387,1750219884198,-2783.84,0.00017095,2]
[366378388,1750219884208,-710.93,0.00017095,2]
[366378389,1750219884218,-490.0,0.00017095,2]
[366378390,1750219884228,-3285.51,0.00017095,2]
[366378391,1750219884238,-2192.48,0.00017095,2]
[366378392,1750219884248,-490.0,0.00017095,2]
[366378393,1750219884257,-490.0,0.00017095,2]
[366378394,1750219884267,-1008.96,0.00017095,2]
[366378395,1750219884277,-8350.55,0.00017095,2]
[366378396,1750219884287,-490.0,0.00017095,2]
[366378397,1750219884298,-1067.17,0.00017095,2]
[366378398,1750219884307,-1740.71,0.00017095,2]
[366378399,1750219884319,-1337.32,0.00017095,2]
[366378400,1750219884329,-528.04,0.00017095,2]
[366378401,1750219884339,-2430.91,0.00017095,2]
[366378402,1750219884350,-602.6,0.00017095,2]
[366378403,1750219884361,-4585.9,0.00017095,2]
[366378404,1750219884371,-490.0,0.00017095,2]
[366378405,1750219884381,-8654.46,0.00017095,2]
[366378406,1750219884391,-308.24,0.00017095,2]
[366378407,1750219884401,-490.0,0.00017095,2]
[366378408,1750219884411,-1844.12,0.00017095,2]
[366378409,1750219884422,-891.56,0.00017095,2]
[366378410,1750219884432,-490.0,0.00017095,2]
[366378411,1750219884443,-490.0,0.00017095,2]
[366378412,1750219884453,-3265.35,0.00017095,2]
[366378413,1750219884462,-1404.52,0.00017095,2]
[366378414,1750219884472,-1271.95,0.00017095,2]
[366378415,1750219884482,-509.4618967,0.00017095,2]
[366378416,1750219884492,-490.0,0.00017095,2]
[366378417,1750219884502,-2923.4,0.00017095,2]
[366378418,1750219884512,-490.0,0.00017095,2]
[366378419,1750219884522,-644.24,0.00017095,2]
[366378420,1750219884531,-6313.53,0.00017095,2]
[366378421,1750219884541,-490.0,0.00017095,2]
[366378422,1750219884551,-490.0,0.00017095,2]
[366378423,1750219884561,-1057.44,0.00017095,2]
[366378424,1750219884571,-490.0,0.00017095,2]
[366378425,1750219884581,-490.0,0.00017095,2]
[366378426,1750219884591,-749.85,0.00017095,2]
[366378427,1750219884601,-1779.31,0.00017095,2]
[366378428,1750219884611,-1753.39,0.00017095,2]
[366378429,1750219884621,-1405.72,0.00017095,2]
[366378430,1750219884633,-1790.04,0.00017095,2]
[366378431,1750219884643,-490.0,0.00017095,2]
[366378432,1750219884653,-673.59,0.00017095,2]
[366378433,1750219884663,-2342.51,0.00017095,2]
[366378434,1750219884674,-20939.69,0.00017095,2]
[366378435,1750219884683,-700.13,0.00017095,2]
[366378436,1750219884693,-151.0,0.00017095,2]
[366378437,1750219884703,-151.0,0.00017095,2]
[366378438,1750219884713,-1153.85,0.00017095,2]
[366378439,1750219884722,-2906.44,0.00017095,2]
[366378440,1750219884735,-1102.0,0.00017095,2]
[366378441,1750219884744,-490.0,0.00017095,2]
[366378442,1750219884754,-894.21,0.00017095,2]
[366378443,1750219884764,-490.0,0.00017095,2]
[366378444,1750219884775,-628.4,0.00017095,2]
[366378445,1750219884786,-1824.79,0.00017095,2]
[366378446,1750219884796,-401.08,0.00017095,2]
[366378447,1750219884806,-490.0,0.00017095,2]
[366378448,1750219884816,-2447.95,0.00017095,2]
[366378449,1750219884827,-769.0,0.00017095,2]
[366378450,1750219884837,-40.53253854,0.00017095,2]
[366378451,1750219884879,-449.46746146,0.00017095,2]
[366378452,1750219884888,-307.40655193,0.00017095,2]
[366378453,1750219884905,-1558.25344807,0.00017095,2]
[366378454,1750219884914,-724.48,0.00017095,2]
[366378455,1750219884924,-1651.27177446,0.00017095,2]
[366378457,1750219966506,1089.23560071,0.0002465,120]
[366378471,1750220252871,150.0,0.0001312,2]
[366378472,1750220453685,157.46,0.00024658,120]
[366378509,1750221032269,-213.23,0.00013699,2]
[366378510,1750221032279,-92.09,0.00014689,2]
[366378511,1750221032291,-110.91,0.00014689,2]
[366378512,1750221032301,-163.07,0.00015372,2]
[366378513,1750221032310,-459.08636156,0.00015483,2]
[366378514,1750221032336,-540.91363844,0.00015483,2]
[366378515,1750221032346,-666.0,0.00015517,2]
[366378516,1750221032355,-182.13,0.00015563,2]
[366378517,1750221032365,-166.26,0.00015824,2]
[366378518,1750221032374,-526.35771593,0.00016,2]
[366378519,1750221032405,-4908.1638437,0.00016,2]
[366378520,1750221032415,-1200.0,0.00016042,2]
[366378521,1750221032424,-492.19,0.00016043,2]
[366378522,1750221032433,-251.54599156,0.00016131,2]
[366378523,1750221032442,-300.0,0.00016156,2]
[366378524,1750221032451,-490.59,0.00016157,2]
[366378525,1750221032460,-500.05,0.00016157,2]
[366378526,1750221032470,-1957.856,0.00016226,2]
[366378527,1750221032480,-207.4,0.00016226,2]
[366378528,1750221032489,-300.0,0.00016227,2]
[366378529,1750221032498,-150.92,0.00016237,2]
[366378530,1750221032508,-303.64,0.00016237,2]
[366378531,1750221032517,-302.21,0.00016237,2]
[366378532,1750221032526,-305.95,0.00016237,2]
[366378533,1750221032535,-498.95,0.00016238,2]
[366378535,1750221032544,-505.92,0.00016238,2]
[366378537,1750221032554,-502.67,0.00016238,2]
[366378539,1750221032564,-499.31,0.00016238,2]
[366378541,1750221032573,-494.9,0.00016238,2]
[366378543,1750221032582,-305.34,0.00016238,2]
[366378545,1750221032592,-498.01,0.00016238,2]
[366378547,1750221032602,-300.31,0.00016238,2]
[366378549,1750221032611,-490.97,0.00016238,2]
[366378551,1750221032620,-492.91,0.00016238,2]
[366378553,1750221032630,-305.25,0.00016238,2]
[366378555,1750221032639,-492.27,0.00016238,2]
[366378557,1750221032648,-20801.61555758,0.00016238,2]
[366378559,1750221032659,-2030.296672,0.00016281,2]
[366378561,1750221032668,-20660.94661853,0.00016328,2]
[366378563,1750221032680,-559.42177229,0.00016328,2]
[366378722,1750221038041,-372.87803105,0.00016328,2]
[366378723,1750221038157,-3116.18918842,0.00016328,2]
[366378724,1750221038167,-2105.41764886,0.00016336,2]
[366378725,1750221038176,-2312.82774878,0.00016338,2]
[366378726,1750221038186,-159.94151528,0.00016338,2]
[366378727,1750221038196,-160.60870446,0.00016338,2]
[366378728,1750221038206,-494.81,0.00016338,2]
[366378729,1750221038215,-506.37,0.00016338,2]
[366378730,1750221038225,-302.62,0.00016338,2]
[366378731,1750221038234,-502.43,0.00016338,2]
[366378732,1750221038243,-503.35,0.00016338,2]
[366378733,1750221038254,-305.47,0.00016338,2]
[366378734,1750221038264,-502.83,0.00016338,2]
[366378735,1750221038274,-303.77,0.00016338,2]
[366378736,1750221038283,-501.29,0.00016338,2]
[366378737,1750221038293,-495.9,0.00016338,2]
[366378738,1750221038302,-305.69,0.00016338,2]
[366378739,1750221038312,-493.16,0.00016338,2]
[366378741,1750221038324,-506.27,0.00016338,2]
[366378743,1750221038333,-302.44,0.00016338,2]
[366378745,1750221038343,-504.34,0.00016338,2]
[366378747,1750221038353,-503.6,0.00016338,2]
[366378749,1750221038363,-300.06,0.00016338,2]
[366378751,1750221038373,-506.26,0.00016338,2]
[366378753,1750221038383,-509.98,0.00016338,2]
[366378755,1750221038393,-304.34,0.00016338,2]
[366378757,1750221038403,-6763.6423,0.00016338,2]
[366378759,1750221038413,-2183.31810187,0.00016391,2]
[366378761,1750221038424,-2313.86028959,0.000164,2]
[366378813,1750221038927,-1291.95,0.000164,2]
[366378900,1750221046246,-160.60870437,0.00016387,2]
[366378901,1750221046257,-2879.88979364,0.000164,2]
[366378902,1750221046267,-1000.0,0.000164,2]
[366378903,1750221046278,-1000.0,0.000164,2]
[366378904,1750221046288,-359.50150199,0.000164,2]
[366378905,1750221046426,-640.49849801,0.000164,2]
[366378906,1750221046437,-1000.0,0.000164,2]
[366378907,1750221046448,-1000.0,0.000164,2]
[366378908,1750221046458,-260.9789459,0.000164,2]
[366378986,1750221170683,151.0,0.00024658,120]
[366378987,1750221197022,162.0,0.00024658,120]
[366378988,1750221731989,203.0,0.00012689,2]
[366378997,1750222001633,203.0,0.00012689,2]
[366379015,1750222232300,-210.23,0.00013699,2]
[366379016,1750222232310,-203.0,0.00013942,2]
[366379017,1750222232321,-150.0,0.00014204,2]
[366379018,1750222232330,-150.0,0.00014985,2]
[366379019,1750222232339,-236.35774457,0.00015101,2]
[366379020,1750222232351,-13.64225543,0.00015101,2]
[366379021,1750222232360,-676.58534415,0.00015133,2]
[366379022,1750222232375,-527.75,0.00015133,2]
[366379023,1750222232387,-1202.93465585,0.00015133,2]
[366379024,1750222232397,-200.0,0.00015189,7]
[366379025,1750222232407,-2852.97,0.00015303,2]
[366379026,1750222232417,-1000.0,0.00015312,2]
[366379027,1750222232427,-242.7,0.00015321,2]
[366379028,1750222232436,-150.0,0.00015394,2]
[366379029,1750222232446,-283.01,0.00015453,2]
[366379030,1750222232455,-1200.0,0.00015794,2]
[366379031,1750222232464,-300.0,0.00015795,2]
[366379032,1750222232474,-858.47877357,0.00015796,2]
[366379033,1750222232485,-300.0,0.00015799,2]
[366379034,1750222232496,-300.0,0.00015799,2]
[366379035,1750222232506,-797.62,0.000158,2]
[366379036,1750222232516,-276.24011576,0.000158,2]
[366379037,1750222232619,-189.68988424,0.000158,2]
[366379038,1750222232629,-797.62,0.000158,2]
[366379039,1750222232642,-805.81,0.000158,2]
[366379040,1750222232651,-150.0,0.00015888,2]
[366379041,1750222232661,-300.0,0.00015889,2]
[366379042,1750222232670,-920.05171835,0.0001589,2]
[366379043,1750222232681,-151.0,0.0001589,2]
[366379044,1750222232691,-1957.856,0.0001589,2]
[366379045,1750222232700,-152.5085745,0.0001589,2]
[366379046,1750222232710,-700.0,0.0001589,2]
[366379047,1750222232720,-151.0,0.0001589,2]
[366379048,1750222232729,-507.41038376,0.0001589,2]
[366379049,1750222232739,-700.0,0.0001589,2]
[366379050,1750222232749,-700.0,0.0001589,2]
[366379051,1750222232759,-153.88421641,0.0001589,2]
[366379052,1750222232768,-151.0,0.0001589,2]
[366379053,1750222232777,-700.0,0.0001589,2]
[366379054,1750222232787,-700.0,0.0001589,2]
[366379055,1750222232796,-151.0,0.0001589,2]
[366379056,1750222232806,-700.0,0.0001589,2]
[366379057,1750222232816,-337.83457863,0.0001589,2]
[366379058,1750222232827,-151.0,0.0001589,2]
[366379059,1750222232838,-700.0,0.0001589,2]
[366379060,1750222232848,-700.0,0.0001589,2]
[366379061,1750222232858,-151.0,0.0001589,2]
[366379062,1750222232868,-700.0,0.0001589,2]
[366379063,1750222232878,-151.0,0.0001589,2]
[366379064,1750222232888,-151.0,0.0001589,2]
[366379065,1750222232898,-700.0,0.0001589,2]
[366379066,1750222232908,-228.53871549,0.0001589,2]
[366379067,1750222232917,-700.0,0.0001589,2]
[366379069,1750222232927,-700.0,0.0001589,2]
[366379071,1750222232936,-700.0,0.0001589,2]
[366379073,1750222232946,-700.0,0.0001589,2]
[366379075,1750222232956,-700.0,0.0001589,2]
[366379077,1750222232966,-700.0,0.0001589,2]
[366379079,1750222232976,-700.0,0.0001589,2]
[366379081,1750222232985,-700.0,0.0001589,2]
[366379083,1750222232995,-159.06860927,0.0001589,2]
[366379085,1750222233007,-840.93139073,0.0001589,2]
[366379087,1750222233016,-408.92114302,0.0001589,2]
[366379089,1750222233028,-591.07885698,0.0001589,2]
[366379091,1750222233040,-252.20779812,0.0001589,2]
[366379096,1750222233076,-500.0,0.0001589,2]
[366379098,1750222233090,-166.20067709,0.0001589,2]
[366379100,1750222233100,-207.4,0.0001589,2]
[366379103,1750222233111,-151.0,0.0001589,2]
[366379106,1750222233125,-161.0631499,0.0001589,2]
[366379109,1750222233136,-3163.52,0.000159,2]
[366379113,1750222233147,-3163.52,0.000159,2]
[366379116,1750222233156,-1017.01817222,0.000159,2]
[366379119,1750222233166,-2030.296672,0.00015945,2]
[366379122,1750222233176,-508.42360096,0.00015986,2]
[366379124,1750222233186,-3163.52,0.00016,2]
[366379127,1750222233196,-3163.52,0.00016,2]
[366379129,1750222233207,-584.4923511,0.00016,2]
[366379131,1750222233220,-1433.99316942,0.00016,2]
[366379135,1750222233253,-86.93212834,0.00016,2]
[366379136,1750222233263,-339.91287166,0.00016038,2]
[366379140,1750222233293,-677.10530048,0.00016038,2]
[366379142,1750222233303,-291.67,0.00016055,2]
[366379144,1750222233313,-105.21242629,0.00016055,2]
[366379147,1750222233333,-1164.2845313,0.00016055,2]
[366379460,1750222238197,-913.82114428,0.00016055,2]
[366379461,1750222238207,-130.42885572,0.00016099,2]
[366379462,1750222238254,-38.36542841,0.00016099,2]
[366379463,1750222238263,-1266.63489723,0.000161,2]
[366379464,1750222238362,-1896.88510277,0.000161,2]
[366379465,1750222238372,-2264.10087164,0.0001611,2]
[366379466,1750222238383,-499.99,0.00016116,2]
[366379467,1750222238394,-506.75,0.00016116,2]
[366379468,1750222238405,-1164.87,0.00016141,2]
[366379469,1750222238415,-250.0,0.00016158,2]
[366379470,1750222238425,-600.0,0.00016158,4]
[366379471,1750222238437,-600.0,0.00016158,4]
[366379472,1750222238447,-2347.87260389,0.00016165,2]
[366379473,1750222238457,-414.98158832,0.00016176,2]
[366379474,1750222238473,-602.03658382,0.00016176,2]
[366379475,1750222238483,-2434.74389024,0.0001622,2]
[366379476,1750222238492,-203.0,0.00016245,4]
[366379477,1750222238501,-2524.82941417,0.00016275,2]
[366379478,1750222238511,-2081.54497392,0.000163,2]
[366379479,1750222238521,-1017.01817214,0.00016314,2]
[366379480,1750222238531,-2618.2481025,0.0001633,2]
[366379481,1750222238541,-162.39994021,0.00016338,2]
[366379482,1750222238551,-172.76382186,0.00016338,2]
[366379483,1750222238560,-159.6243263,0.00016338,2]
[366379484,1750222238570,-194.55679553,0.00016338,2]
[366379486,1750222238580,-1486.6057,0.00016338,2]
[366379488,1750222238589,-640.526,0.00016338,2]
[366379490,1750222238598,-350.0,0.00016384,2]
[366379492,1750222238608,-496.02,0.00016384,2]
[366379493,1750222238617,-2715.12328229,0.00016385,2]
[366379495,1750222238626,-2081.54497384,0.00016395,2]
[366379498,1750222238636,-2474.91439934,0.00016399,2]
[366379500,1750222238645,-2601.63753494,0.00016399,2]
[366379516,1750222240398,-1055.45,0.00016399,2]
[366379517,1750222240411,-446.88950541,0.00016399,2]
[366379518,1750222240507,-2995.7037821,0.00016399,2]
[366379519,1750222240618,-1562.8116227,0.00016399,2]
[366379520,1750222243676,-600.0,0.00016399,2]
[366379521,1750222243688,-1256.61,0.00016399,2]
[366379534,1750222246633,-640.526,0.00016399,2]
[366379561,1750222451761,203.0,0.00012942,2]
[366379574,1750222848658,319.18422083,0.00024596,120]
[366379575,1750222868434,334.439649,7.945e-05,2]
[366379601,1750223366067,226.0,0.0001312,2]
[366379609,1750223431572,-203.0,0.00013419,2]
[366379610,1750223431582,-1471.56179539,0.00013599,2]
[366379611,1750223431592,-209.43,0.00013699,2]
[366379612,1750223431601,-300.0,0.00014365,2]
[366379613,1750223431611,-150.0,0.0001441,2]
[366379614,1750223431621,-200.0,0.00015038,2]
[366379615,1750223431631,-200.0,0.00015051,7]
[366379616,1750223431641,-1500.0,0.0001507,2]
[366379617,1750223431650,-1193.10628336,0.00015101,2]
[366379618,1750223431675,-6.89371664,0.00015101,2]
[366379619,1750223431684,-300.0,0.00015101,2]
[366379620,1750223431696,-9485.99368684,0.00015102,2]
[366379621,1750223431709,-401.85631316,0.00015102,2]
[366379622,1750223431719,-2839.1,0.00015124,2]
[366379623,1750223431728,-150.0,0.00015157,2]
[366379624,1750223431738,-7766.2,0.00015162,2]
[366379625,1750223431747,-2674.89902516,0.00015211,2]
[366379786,1750223437433,-264.825,0.00015211,2]
[366379787,1750223437595,-1241.83745801,0.00015211,2]
[366379788,1750223437607,-153.17851683,0.00015211,2]
[366379789,1750223437617,-168.0,0.0001545,2]
[366379790,1750223437626,-163.07,0.00015464,2]
[366379791,1750223437636,-1000.0,0.00015471,2]
[366379792,1750223437646,-2209.40333815,0.00015479,2]
[366379793,1750223437663,-320.14840894,0.00015479,2]
[366379993,1750223439776,-176.54825291,0.00015479,2]
[366379994,1750223439786,-181.13,0.00015499,2]
[366379996,1750223439796,-150.0,0.00015639,2]
[366379998,1750223439805,-150.0,0.00015724,2]
[366380000,1750223439815,-300.0,0.00015751,2]
[366380002,1750223439825,-168.0,0.00015756,2]
[366380004,1750223439834,-300.0,0.00015778,2]
[366380005,1750223439843,-159.0,0.00015778,2]
[366380007,1750223439852,-642.405,0.00015779,2]
[366380009,1750223439862,-2011.127,0.00015779,2]
[366380010,1750223439871,-560.319,0.00015779,2]
[366380012,1750223439880,-931.903,0.00015779,2]
[366380014,1750223439890,-1283.737,0.00015779,2]
[366380016,1750223439899,-596.154,0.00015779,2]
[366380017,1750223439909,-1681.502,0.00015779,2]
[366380019,1750223439919,-203.0,0.0001587,5]
[366380021,1750223439928,-881.41574942,0.000159,2]
[366380023,1750223439939,-2042.10459905,0.00015931,2]
[366380279,1750223442674,-204.0,0.00013419,2]
[366380282,1750223442684,-734.89540095,0.00015931,2]
[366380285,1750223442694,-168.0,0.0001595,2]
[366380287,1750223442707,-490.7,0.00016035,2]
[366380290,1750223442717,-506.29,0.00016035,2]
[366380293,1750223442727,-881.41574918,0.00016038,2]
[366380295,1750223442736,-1051.88822612,0.0001605,2]
[366380298,1750223442748,-528.11177388,0.0001605,2]
[366380301,1750223442757,-0.11096437,0.00016094,2]
[366380315,1750223442834,-149.88903563,0.00016094,2]
[366380318,1750223442843,-207.4,0.00016107,2]
[366380321,1750223442852,-700.0,0.00016107,2]
[366380323,1750223442862,-1957.856,0.00016107,2]
[366380326,1750223442871,-700.0,0.00016107,2]
[366380328,1750223442880,-700.0,0.00016107,2]
[366380330,1750223442889,-700.0,0.00016107,2]
[366380332,1750223442899,-700.0,0.00016107,2]
[366380334,1750223442907,-700.0,0.00016107,2]
[366380336,1750223442917,-356.55505392,0.00016107,2]
[366380338,1750223442926,-151.0,0.00016107,2]
[366380340,1750223442935,-2030.296672,0.00016162,2]
[366380342,1750223442945,-150.0,0.00016174,2]
[366380345,1750223442954,-881.41574918,0.00016176,2]
[366380348,1750223442963,-168.0,0.00016215,2]
[366380404,1750223443234,-2105.41764886,0.00016217,2]
[366380407,1750223443244,-168.0,0.00016244,2]
[366380410,1750223443254,-2183.31810187,0.00016272,2]
[366380413,1750223443264,-855.0,0.00016296,2]
[366380416,1750223443274,-4126.27,0.00016296,2]
[366380419,1750223443283,-7137.95,0.00016296,2]
[366380422,1750223443293,-158.046,0.00016296,2]
[366380425,1750223443304,-176.0,0.000163,2]
[366380429,1750223443314,-176.0,0.000163,2]
[366380432,1750223443324,-177.86,0.000163,2]
[366380434,1750223443333,-881.41574918,0.00016314,2]
[366380437,1750223443344,-2264.10087164,0.00016327,2]
[366380440,1750223443353,-160.31810043,0.00016337,2]
[366380444,1750223443363,-172.76382184,0.00016338,2]
[366380445,1750223443372,-159.62432628,0.00016338,2]
[366380449,1750223443383,-168.0,0.00016367,2]
[366380452,1750223443392,-160.31810043,0.00016381,2]
[366380454,1750223443401,-2347.87260389,0.00016382,2]
[366380457,1750223443411,-2070.44296265,0.0001639,2]
[366380459,1750223443420,-500.0,0.00016399,2]
[366380460,1750223443429,-509.02,0.00016399,2]
[366380463,1750223443439,-501.86,0.00016399,2]
[366380464,1750223443448,-304.94,0.00016399,2]
[366380466,1750223443458,-503.35,0.00016399,2]
[366380469,1750223443468,-498.35,0.00016399,2]
[366380470,1750223443477,-300.24,0.00016399,2]
[366380473,1750223443487,-1237.45719967,0.000164,2]
[366380475,1750223443496,-67910.22260584,0.000164,2]
[366380477,1750223443505,-739.0210541,0.000164,2]
[366380478,1750223443515,-1000.0,0.000164,2]
[366380480,1750223443524,-1000.0,0.000164,2]
[366380483,1750223443534,-1000.0,0.000164,2]
[366380484,1750223443544,-450.0,0.000164,4]
[366380487,1750223443553,-1000.0,0.000164,3]
[366380488,1750223443562,-1000.0,0.000164,3]
[366380490,1750223443572,-1000.0,0.000164,3]
[366380492,1750223443581,-1000.0,0.000164,3]
[366380494,1750223443591,-1000.0,0.000164,2]
[366380496,1750223443600,-1000.0,0.000164,2]
[366380498,1750223443610,-1000.0,0.000164,2]
[366380499,1750223443620,-1000.0,0.000164,2]
[366380500,1750223443629,-1000.0,0.000164,2]
[366380501,1750223443638,-1000.0,0.000164,2]
[366380502,1750223443647,-528.0,0.000164,3]
[366380503,1750223443657,-1000.0,0.000164,3]
[366380504,1750223443666,-1000.0,0.000164,2]
[366380505,1750223443677,-1000.0,0.000164,2]
[366380506,1750223443686,-1000.0,0.000164,2]
[366380507,1750223443695,-1000.0,0.000164,2]
[366380509,1750223443708,-464.0,0.000164,4]
[366380511,1750223443718,-1000.0,0.000164,3]
[366380513,1750223443727,-1000.0,0.000164,2]
[366380515,1750223443737,-1000.0,0.000164,2]
[366380517,1750223443747,-1000.0,0.000164,2]
[366380519,1750223443755,-1524.322,0.000164,2]
[366380521,1750223443765,-277.592,0.000164,2]
[366380523,1750223443775,-160.31810043,0.00016424,2]
[366380525,1750223443784,-263.94,0.00016428,2]
[366380527,1750223443795,-493.530501,0.00016436,2]
[366380529,1750223443805,-2434.74389024,0.00016437,2]
[366380530,1750223443814,-207.1010055,0.00016438,2]
[366380532,1750223443824,-250.40823406,0.00016438,2]
[366380534,1750223443833,-318.92013167,0.00016438,2]
[366380536,1750223443844,-490.0,0.00016438,2]
[366380538,1750223443853,-175.78883164,0.00016438,2]
[366380540,1750223443862,-490.0,0.00016438,2]
[366380542,1750223443872,-1168.471838,0.00016438,2]
[366380544,1750223443881,-490.0,0.00016438,2]
[366380546,1750223443890,-490.0,0.00016438,2]
[366380547,1750223443899,-490.0,0.00016438,2]
[366380549,1750223443908,-490.0,0.00016438,2]
[366380551,1750223443918,-490.0,0.00016438,2]
[366380553,1750223443927,-500.0,0.00016438,2]
[366380555,1750223443937,-490.0,0.00016438,2]
[366380557,1750223443946,-1303.98,0.00016438,2]
[366380559,1750223443956,-490.0,0.00016438,2]
[366380561,1750223443965,-490.0,0.00016438,2]
[366380563,1750223443974,-546.32,0.00016438,2]
[366380565,1750223443984,-490.0,0.00016438,2]
[366380567,1750223443998,-490.0,0.00016438,2]
[366380569,1750223444008,-491.39844724,0.00016438,2]
[366380571,1750223444017,-490.0,0.00016438,2]
[366380573,1750223444027,-490.0,0.00016438,2]
[366380575,1750223444037,-491.27792705,0.00016438,2]
[366380577,1750223444047,-592.5,0.00016438,2]
[366380579,1750223444057,-340.59198904,0.00016438,2]
[366380581,1750223444066,-490.0,0.00016438,2]
[366380583,1750223444076,-701.74,0.00016438,2]
[366380585,1750223444086,-490.0,0.00016438,2]
[366380587,1750223444096,-438.03631452,0.00016438,2]
[366380589,1750223444106,-492.17258839,0.00016438,2]
[366380591,1750223444116,-490.0,0.00016438,2]
[366380593,1750223444127,-605.63,0.00016438,2]
[366380595,1750223444136,-490.0,0.00016438,2]
[366380597,1750223444146,-818.13,0.00016438,2]
[366380599,1750223444156,-490.0,0.00016438,2]
[366380601,1750223444165,-490.0,0.00016438,2]
[366380603,1750223444175,-491.76155691,0.00016438,2]
[366380605,1750223444186,-490.0,0.00016438,2]
[366380607,1750223444195,-490.0,0.00016438,2]
[366380609,1750223444205,-490.0,0.00016438,2]
[366380611,1750223444216,-244.83391174,0.00016438,2]
[366380613,1750223444226,-490.0,0.00016438,2]
[366380615,1750223444236,-490.0,0.00016438,2]
[366380617,1750223444247,-704.43,0.00016438,2]
[366380619,1750223444256,-496.09917087,0.00016438,2]
[366380621,1750223444265,-490.0,0.00016438,2]
[366380623,1750223444275,-923.9,0.00016438,2]
[366380625,1750223444285,-490.0,0.00016438,2]
[366380627,1750223444295,-490.0,0.00016438,2]
[366380629,1750223444304,-1248.99,0.00016438,2]
[366380631,1750223444314,-422.6288634,0.00016438,2]
[366380633,1750223444323,-490.0,0.00016438,2]
[366380635,1750223444332,-491.27855126,0.00016438,2]
[366380637,1750223444342,-1182.23,0.00016438,2]
[366380639,1750223444351,-490.0,0.00016438,2]
[366380641,1750223444361,-558.54841602,0.00016438,2]
[366380643,1750223444371,-490.0,0.00016438,2]